bitfinex-derivatives/quotes_SOLF0:USTF0_20250924
["timestamp","ask_amount","ask_price","bid_price","bid_amount"]
[1758704940696,4.2711,210.66,210.6,2.14838557]
[1758704941087,4.2711,210.66,210.61,8.01]
[1758704941397,12.0506,210.68,210.61,8.01]
[1758704942595,4.2709,210.67,210.61,8.01]
[1758704945703,7.78,210.65,210.6,10.15838557]
[1758704945902,66.4233,210.71,210.6,10.15838557]
[1758704946206,7.78,210.69,210.6,10.15838557]
[1758704946396,7.78,210.67,210.6,10.15838557]
[1758704946596,1.18725604,210.66,210.6,10.15838557]
[1758704946797,4.2713,210.65,210.6,2.14838557]
[1758704947102,7.78,210.64,210.61,8.01]
[1758704947400,7.78,210.64,210.6,2.14838557]
[1758704947799,7.78,210.64,210.61,8.01]
[1758704951605,7.78,210.64,210.6,6.13471239]
[1758704951906,7.78,210.64,210.61,8.01]
[1758704952308,7.78,210.64,210.6,6.13471239]
[1758704952909,7.78,210.64,210.61,8.01]
[1758704953108,7.78,210.64,210.6,6.13471239]
[1758704953304,4.2713,210.65,210.61,3.98632682]
[1758704953505,1.18721983,210.64,210.62,8.01]
[1758704953811,4.2713,210.65,210.61,3.98632682]
[1758704954112,1.18721965,210.64,210.62,8.01]
[1758704954409,12.0513,210.65,210.62,8.01]
[1758704954610,1.18721965,210.64,210.62,8.01]
[1758704954811,12.0513,210.65,210.62,8.01]
[1758704955009,8.96721991,210.64,210.62,8.01]
[1758704955206,7.78,210.64,210.62,8.01]
[1758704956312,7.78,210.64,210.62,11.99632682]
[1758704957012,7.78,210.64,210.62,8.01]
[1758704957215,7.78,210.64,210.62,11.99632682]
[1758704964008,66.4233,210.71,210.62,11.99632682]
[1758704964009,66.4233,210.71,210.62,3.98632682]
[1758704964210,66.448,210.63,210.56,5.33902089]
[1758704964409,66.4541,210.61,210.54,20.25909089]
[1758704964610,1.18722025,210.6,210.54,14.92007]
[1758704964820,7.26,210.55,210.54,14.92007]
[1758704965117,8.44722025,210.55,210.54,14.92007]
[1758704965714,8.44722025,210.55,210.54,7.1610776]
[1758704965919,8.44722025,210.55,210.54,7.76e-05]
[1758704966116,8.92722025,210.55,210.54,7.76e-05]
[1758704966318,8.92801958,210.55,210.54,7.76e-05]
[1758704967314,7.26,210.51,210.42,7.63]
[1758704967524,7.26,210.49,210.42,7.63]
[1758704968418,7.26,210.49,210.39,7.63]
[1758704968615,7.26,210.47,210.39,7.63]
[1758704968818,7.26,210.45,210.39,7.63]
[1758704969018,7.26,210.43,210.39,7.63]
[1758704969713,7.26,210.46,210.39,7.63]
[1758704969918,1.18849096,210.45,210.39,7.63]
[1758704970117,7.26,210.43,210.39,7.63]
[1758704970923,11.5356,210.43,210.39,7.63]
[1758704971523,7.26,210.42,210.39,7.63]
[1758704972419,4.2756,210.43,210.33,4.2775]
[1758704972621,11.5356,210.43,210.35,7.63]
[1758704978516,11.5356,210.43,210.36,1.37861757]
[1758704979118,7.26,210.43,210.37,7.63]
[1758704980623,7.26,210.43,210.38,1.37861757]
[1758704980831,7.26,210.45,210.39,7.63]
[1758704983133,25.85326286,210.45,210.39,7.63]
[1758704983332,11.5354,210.45,210.39,7.63]
[1758704983733,12.91401757,210.45,210.39,7.63]
[1758704984035,12.91401757,210.45,210.35,9.00861757]
[1758704984229,1.37861757,210.45,210.35,9.00861757]
[1758704984526,7.26,210.44,210.35,9.00861757]
[1758704985730,4.2758,210.43,210.35,9.00861757]
[1758704987827,7.26,210.41,210.35,7.63]
[1758704988027,8.63861757,210.41,210.3,1.37861757]
[1758704988234,8.63861757,210.41,210.31,7.63]
[1758704988839,4.2766,210.39,210.31,7.63]
[1758704989040,11.5366,210.39,210.31,7.63]
[1758704990041,7.26,210.39,210.31,7.63]
[1758704990532,7.26,210.39,210.32,7.63]
[1758704992928,4.2768,210.38,210.32,7.63]
[1758704994136,12.2374,210.35,210.28,7.4]
[1758704994336,9.33861757,210.35,210.25,345.82]
[1758704994529,7.96,210.34,210.25,353.22]
[1758704994734,1.37861757,210.35,210.25,353.22]
[1758704994933,7.96,210.34,210.25,353.22]
[1758704995335,7.96,210.31,210.25,353.22]
[1758704998435,4.2775,210.34,210.26,7.51]
[1758705001245,1.37861757,210.32,210.26,7.51]
[1758705005243,9.01910297,210.31,210.26,7.51]
[1758705005443,7.83,210.31,210.25,461.24]
[1758705005646,7.83,210.31,210.26,7.51]
[1758705005945,5.65661757,210.32,210.26,7.51]
[1758705006141,1.18910315,210.31,210.26,7.51]
[1758705006346,1.37861757,210.32,210.26,7.51]
[1758705006547,9.01910332,210.31,210.27,7.51]
[1758705006749,7.83,210.31,210.27,7.51]
[1758705006941,7.83,210.31,210.25,461.24]
[1758705007147,1.1891056,210.3,210.26,7.51]
[1758705007348,7.83,210.31,210.27,7.51]
[1758705007542,13.29754312,210.3,210.27,7.51]
[1758705007746,1.18914312,210.29,210.2,1.37861757]
[1758705007946,9.01914312,210.28,210.21,7.51]
[1758705008144,9.01914312,210.28,210.21,122.95]
[1758705008145,1.18914312,210.27,210.21,122.95]
[1758705008546,4.2793,210.26,210.21,122.95]
[1758705008752,9.01914312,210.25,210.22,7.51]
[1758705008948,7.83,210.25,210.22,7.51]
[1758705009148,1.18929822,210.24,210.22,7.51]
[1758705009348,4.2793,210.26,210.22,7.51]
[1758705009555,1.18929893,210.25,210.22,7.51]
[1758705009755,1.18929893,210.24,210.22,7.51]
[1758705009955,12.1093,210.26,210.22,7.51]
[1758705010154,1.18929893,210.25,210.22,7.51]
[1758705010359,1.18929893,210.24,210.22,7.51]
[1758705010550,1.18929893,210.23,210.22,7.51]
[1758705010757,1.18929893,210.25,210.22,7.51]
[1758705010953,1.18929893,210.24,210.22,7.51]
[1758705011153,1.18929893,210.23,210.22,7.51]
[1758705012157,7.83,210.26,210.22,7.51]
[1758705012158,1.18929893,210.25,210.22,7.51]
[1758705012352,1.18929893,210.24,210.22,7.51]
[1758705012654,1.18929893,210.23,210.22,7.51]
[1758705012855,1.18929893,210.25,210.22,7.51]
[1758705013057,1.18929893,210.24,210.22,7.51]
[1758705013259,1.18929893,210.23,210.22,7.51]
[1758705013453,1.18929893,210.25,210.22,7.51]
[1758705013758,1.18929893,210.24,210.21,7.51]
[1758705013952,1.18929893,210.23,210.2,57.06]
[1758705014160,12.1092,210.26,210.21,7.51]
[1758705014453,1.18930765,210.25,210.2,57.06]
[1758705014650,4.2788,210.28,210.2,57.06]
[1758705014651,1.18930765,210.24,210.2,57.06]
[1758705014848,4.2788,210.28,210.21,7.51]
[1758705015156,1.18930732,210.27,210.21,7.51]
[1758705015355,7.83,210.25,210.21,7.51]
[1758705015551,1.1893082,210.24,210.21,7.51]
[1758705015757,7.83,210.25,210.21,7.51]
[1758705016051,7.83,210.25,210.2,57.06]
[1758705016257,7.83,210.25,210.21,7.51]
[1758705016457,7.83,210.25,210.2,57.06]
[1758705016655,7.83,210.25,210.21,7.51]
[1758705017050,7.83,210.25,210.18,105.4]
[1758705017051,1.1893171,210.24,210.18,7.51]
[1758705017259,9.20861757,210.26,210.18,7.51]
[1758705017449,1.18935408,210.25,210.18,7.51]
[1758705017654,1.18935408,210.24,210.18,7.51]
[1758705017855,4.2794,210.25,210.18,7.51]
[1758705018057,9.01935391,210.24,210.18,7.51]
[1758705018259,7.83,210.24,210.18,7.51]
[1758705018658,7.83,210.22,210.18,7.51]
[1758705019557,7.83,210.22,210.16,7.51]
[1758705019759,1.37861757,210.24,210.16,7.51]
[1758705020665,1.37861757,210.24,210.16,11.791]
[1758705021562,13.48821757,210.24,210.16,11.791]
[1758705022763,13.48821757,210.24,210.17,7.51]
[1758705023967,13.48821757,210.24,210.17,11.7908]
[1758705024967,12.1096,210.24,210.17,11.7908]
[1758705028671,12.1096,210.24,210.18,4.2806]
[1758705029672,7.83,210.24,210.18,4.2806]
[1758705030776,1.37861757,210.27,210.16,7.62]
[1758705031075,8.84861757,210.27,210.16,7.62]
[1758705031871,8.84861757,210.27,210.21,7.62]
[1758705033481,22.91774868,210.27,210.21,7.62]
[1758705033878,27.19674868,210.27,210.21,7.62]
[1758705034985,25.81813111,210.27,210.21,7.62]
[1758705035281,27.19674868,210.27,210.21,7.62]
[1758705036584,7.47,210.25,210.21,7.62]
[1758705036781,4.2792,210.26,210.21,7.62]
[1758705037184,7.47,210.25,210.21,7.62]
[1758705037384,4.2792,210.26,210.21,7.62]
[1758705037682,7.47,210.24,210.15,3.97802206]
[1758705037888,7.47,210.21,210.15,115.48]
[1758705038381,7.47,210.21,210.15,119.45802206]
[1758705039987,7.47,210.21,210.15,123.73922206]
[1758705040189,7.47,210.21,210.16,7.62]
[1758705040389,7.47,210.21,210.15,123.73922206]
[1758705041088,7.47,210.21,210.16,7.62]
[1758705041293,7.47,210.21,210.15,123.73922206]
[1758705041982,7.47,210.21,210.16,7.62]
[1758705042384,11.75,210.22,210.15,131.35922206]
[1758705044991,11.75,210.22,210.16,4.281]
[1758705045185,11.75,210.22,210.17,7.62]
[1758705045388,11.75,210.22,210.16,4.281]
[1758705045794,11.75,210.22,210.17,7.62]
[1758705046195,11.75,210.22,210.17,4.2808]
[1758705046494,11.75,210.22,210.18,7.62]
[1758705047286,7.47,210.21,210.18,7.62]
[1758705048292,4.28,210.22,210.17,4.2808]
[1758705048501,7.47,210.24,210.16,3.97802206]
[1758705048502,7.47,210.24,210.18,7.62]
[1758705048688,14.59750299,210.27,210.19,3.97802206]
[1758705048886,8.65934772,210.26,210.22,7.62]
[1758705049093,1.18934772,210.25,210.22,7.62]
[1758705049292,1.18934772,210.25,210.21,7.62]
[1758705049497,1.18934772,210.25,210.22,7.62]
[1758705049695,8.65934772,210.25,210.22,7.62]
[1758705049895,7.47,210.25,210.22,7.62]
[1758705052201,1.18934825,210.24,210.22,7.62]
[1758705052395,7.47,210.25,210.22,7.62]
[1758705052595,1.18934825,210.24,210.22,7.62]
[1758705052795,7.47,210.25,210.22,7.62]
[1758705052997,1.18934825,210.24,210.22,7.62]
[1758705053196,7.47,210.25,210.22,7.62]
[1758705053397,1.18934825,210.24,210.22,7.62]
[1758705053597,7.47,210.25,210.22,7.62]
[1758705053796,1.18934825,210.24,210.22,7.62]
[1758705054000,4.279,210.27,210.21,4.28]
[1758705054200,1.18934825,210.26,210.21,4.28]
[1758705054500,7.51,210.24,210.21,11.72]
[1758705056903,7.51,210.24,210.22,7.44]
[1758705057205,7.51,210.26,210.21,4.28]
[1758705057403,1.18934824,210.25,210.22,7.44]
[1758705057598,11.7885,210.29,210.23,7.44]
[1758705057799,8.69929309,210.28,210.22,7.44]
[1758705058093,1.18929309,210.27,210.22,7.9]
[1758705058402,1.18929309,210.26,210.22,7.9]
[1758705058598,1.18929309,210.25,210.22,7.9]
[1758705058802,11.7888,210.28,210.22,7.9]
[1758705058999,1.18929239,210.27,210.22,7.9]
[1758705059205,1.18929239,210.26,210.22,7.9]
[1758705059398,1.18929239,210.25,210.22,7.9]
[1758705059699,11.7888,210.28,210.22,7.9]
[1758705059905,8.69929239,210.27,210.23,7.9]
[1758705060106,1.18929239,210.26,210.22,4.2798]
[1758705060400,1.18929239,210.25,210.23,7.9]
[1758705060604,7.51,210.27,210.23,7.9]
[1758705060806,1.18929239,210.26,210.22,8.28524729]
[1758705060996,7.51,210.27,210.23,7.9]
[1758705061196,1.18925646,210.26,210.21,11.90544729]
[1758705061402,8.69925646,210.25,210.21,7.9]
[1758705061610,1.18925646,210.24,210.22,7.9]
[1758705064506,12.97885646,210.24,210.22,7.9]
[1758705064810,8.6994194,210.23,210.2,123.38]
[1758705065111,7.51,210.22,210.2,123.38]
[1758705065507,7.51,210.22,210.2,115.48]
[1758705065904,7.51,210.22,210.19,123.34]
[1758705066814,11.79,210.22,210.19,123.34]
[1758705068615,11.79,210.22,210.2,7.9]
[1758705073419,4.28,210.22,210.19,119.44544729]
[1758705073625,4.28,210.22,210.2,7.9]
[1758705074122,4.28,210.22,210.19,119.44544729]
[1758705074318,4.28,210.22,210.2,7.9]
[1758705074809,4.28,210.22,210.19,119.44544729]
[1758705075624,4.28,210.22,210.2,7.9]
[1758705075821,4.28,210.22,210.19,119.44544729]
[1758705076015,4.28,210.22,210.2,7.9]
[1758705076220,4.28,210.22,210.19,119.44544729]
[1758705076718,4.28,210.22,210.2,7.9]
[1758705076919,4.28,210.22,210.19,119.44544729]
[1758705077120,4.28,210.22,210.2,7.9]
[1758705077725,4.28,210.22,210.19,119.44544729]
[1758705078430,4.28,210.22,210.2,7.9]
[1758705078624,4.28,210.22,210.19,115.44]
[1758705078921,7.51,210.27,210.2,4.00544729]
[1758705079121,1.18938525,210.26,210.2,4.00544729]
[1758705079325,8.69938525,210.25,210.21,7.9]
[1758705079520,12.97898525,210.24,210.2,4.00544729]
[1758705079819,1.18938525,210.23,210.2,4.00544729]
[1758705080017,4.2796,210.24,210.2,4.00544729]
[1758705080212,1.18938418,210.23,210.21,7.9]
[1758705080416,4.2796,210.24,210.23,7.9]
[1758705080620,5.46898383,210.24,210.23,7.9]
[1758705082324,5.46898383,210.24,210.22,115.44]
[1758705082523,8.69938383,210.23,210.22,115.44]
[1758705085923,1.18938383,210.23,210.22,115.44]
[1758705087222,1.18938383,210.23,210.22,123.32]
[1758705087423,8.46938383,210.23,210.22,115.44]
[1758705088928,8.46938383,210.23,210.19,11.88544729]
[1758705089128,8.46938383,210.22,210.2,115.44]
[1758705089325,7.28,210.22,210.2,123.32]
[1758705089828,4.2802,210.21,210.2,123.32]
[1758705094235,4.2802,210.21,210.2,127.32955274]
[1758705097039,4.2802,210.21,210.2,115.42]
[1758705097040,12.74963987,210.21,210.2,115.42]
[1758705097234,5.46963987,210.21,210.2,123.3]
[1758705098936,1.18943987,210.21,210.2,123.3]
[1758705102755,11.5596,210.24,210.2,115.42]
[1758705103044,1.18943987,210.23,210.22,7.88]
[1758705103743,5.46923987,210.23,210.22,7.88]
[1758705105454,4.2801,210.22,210.2,123.3]
[1758705105652,1.18943987,210.21,210.2,123.3]
[1758705107452,1.18943987,210.21,210.2,7.88]
[1758705107648,4.2803,210.2,210.18,7.88]
[1758705107848,1.18943987,210.19,210.18,46.04]
[1758705113157,4.2803,210.2,210.18,46.04]
[1758705113353,4.2803,210.2,210.19,7.88]
[1758705113554,5.46987029,210.2,210.19,7.88]
[1758705115264,4.2807,210.19,210.16,4.00955274]
[1758705115763,4.2807,210.19,210.17,7.61]
[1758705115954,4.2807,210.19,210.16,4.00955274]
[1758705116161,4.2807,210.19,210.17,7.61]
[1758705116361,7.28,210.28,210.17,4.00955274]
[1758705116662,8.66114776,210.26,210.19,7.61]
[1758705116861,1.18947241,210.25,210.19,7.61]
[1758705117058,1.18947241,210.24,210.19,7.61]
[1758705117264,1.18947241,210.23,210.19,7.61]
[1758705117463,7.28,210.25,210.18,4.00706588]
[1758705117464,1.18947241,210.22,210.18,4.00706588]
[1758705117664,1.18947241,210.21,210.19,7.4]
[1758705117864,4.2802,210.21,210.19,7.4]
[1758705118066,4.2802,210.21,210.18,4.00706588]
[1758705118361,4.2807,210.19,210.16,4.00706588]
[1758705118561,4.2807,210.19,210.17,7.4]
[1758705118762,4.2807,210.19,210.16,4.00706588]
[1758705118962,4.2807,210.19,210.18,7.4]
[1758705122167,4.2802,210.21,210.16,4.00706588]
[1758705122356,8.88114776,210.23,210.17,4.00706588]
[1758705122357,1.18956958,210.2,210.17,4.00706588]
[1758705122556,1.18956174,210.19,210.18,7.4]
[1758705125867,66.5933,210.17,210.11,11.40706588]
[1758705126061,7.5,210.15,210.1,4.00706588]
[1758705126268,7.5,210.15,210.11,7.4]
[1758705126461,7.5,210.15,210.1,4.00706588]
[1758705126866,4.2819,210.13,210.1,4.00706588]
[1758705127068,4.2819,210.13,210.11,7.4]
[1758705127268,4.2819,210.13,210.09,4.00706588]
[1758705127469,4.2819,210.13,210.1,7.4]
[1758705127867,1.38114776,210.2,210.1,7.4]
[1758705128072,1.18998426,210.19,210.12,7.4]
[1758705128374,8.88114776,210.2,210.12,7.4]
[1758705128375,4.2813,210.16,210.12,7.4]
[1758705128777,8.88114776,210.2,210.12,7.4]
[1758705128974,1.18997288,210.19,210.12,7.4]
[1758705129179,1.18997288,210.18,210.12,7.4]
[1758705129382,1.18997288,210.17,210.12,7.4]
[1758705129676,1.18997288,210.16,210.12,7.4]
[1758705129870,8.88114776,210.2,210.12,7.4]
[1758705130070,1.18993602,210.19,210.12,7.4]
[1758705130270,1.18993602,210.18,210.12,7.4]
[1758705130474,1.18993602,210.17,210.12,7.4]
[1758705130765,4.281,210.17,210.12,7.4]
[1758705130969,8.88114776,210.2,210.13,7.4]
[1758705131170,1.18989097,210.19,210.13,7.4]
[1758705131371,1.18989097,210.18,210.12,4.2818]
[1758705131576,8.88114776,210.2,210.13,7.4]
[1758705131775,4.2808,210.18,210.12,4.2818]
[1758705131972,8.88114776,210.2,210.13,7.4]
[1758705132176,1.18989026,210.19,210.13,7.4]
[1758705132372,1.18989026,210.18,210.12,7.4]
[1758705132572,8.88114776,210.2,210.12,7.4]
[1758705132777,1.18989026,210.19,210.12,7.4]
[1758705132976,1.18989026,210.18,210.12,7.4]
[1758705133275,8.88114776,210.22,210.12,7.4]
[1758705133478,1.18989009,210.21,210.12,7.4]
[1758705133677,1.18989009,210.2,210.12,7.4]
[1758705133870,5.47049009,210.19,210.13,7.4]
[1758705134173,1.18989009,210.18,210.12,4.2818]
[1758705134378,4.2808,210.18,210.12,4.2818]
[1758705134578,4.2808,210.18,210.13,7.4]
[1758705135179,4.2811,210.17,210.11,5.38821364]
[1758705135380,4.2811,210.17,210.12,7.4]
[1758705135675,4.2812,210.16,210.12,7.4]
[1758705137071,4.2812,210.16,210.11,119.40706588]
[1758705137677,4.2808,210.18,210.12,7.4]
[1758705138179,7.5,210.19,210.12,7.4]
[1758705138383,1.18987923,210.18,210.12,7.4]
[1758705138582,7.5,210.19,210.12,7.4]
[1758705138882,1.18988083,210.18,210.12,7.4]
[1758705139072,7.5,210.19,210.12,7.4]
[1758705139273,1.18988083,210.18,210.12,7.4]
[1758705139483,7.5,210.19,210.12,7.4]
[1758705139782,4.281,210.17,210.12,7.4]
[1758705140179,4.281,210.17,210.11,8.28916588]
[1758705140379,4.281,210.17,210.12,115.4]
[1758705140780,4.281,210.17,210.13,7.4]
[1758705141179,4.281,210.17,210.12,115.4]
[1758705141778,4.281,210.17,210.13,7.4]
[1758705142481,4.281,210.17,210.12,115.4]
[1758705142883,4.281,210.17,210.13,7.4]
[1758705143081,4.281,210.17,210.12,119.6818]
[1758705143281,4.281,210.17,210.13,7.4]
[1758705143479,4.281,210.17,210.12,119.6818]
[1758705143682,4.281,210.17,210.13,7.74]
[1758705144582,4.281,210.17,210.12,119.6818]
[1758705144779,4.281,210.17,210.13,7.74]
[1758705144975,4.281,210.17,210.12,119.6818]
[1758705145384,4.281,210.17,210.13,7.74]
[1758705145584,4.281,210.17,210.12,119.6818]
[1758705145784,4.281,210.17,210.13,7.74]
[1758705146183,4.281,210.17,210.12,119.6818]
[1758705146784,4.281,210.17,210.14,7.74]
[1758705147385,7.34,210.19,210.13,115.4]
[1758705147584,2.57099173,210.18,210.12,115.4]
[1758705147786,7.34,210.16,210.12,115.4]
[1758705147983,1.38114776,210.18,210.12,123.14]
[1758705148288,7.34,210.16,210.12,123.14]
[1758705148488,4.2817,210.14,210.12,123.14]
[1758705150784,4.2817,210.14,210.13,7.74]
[1758705150979,11.6212,210.16,210.13,7.74]
[1758705151189,1.38114776,210.18,210.12,7.74]
[1758705151384,7.34,210.16,210.13,123.14]
[1758705151784,7.34,210.16,210.13,7.74]
[1758705151984,7.34,210.16,210.13,123.14]
[1758705152185,4.2814,210.15,210.13,123.14]
[1758705153691,4.2814,210.15,210.13,7.74]
[1758705153888,4.2814,210.15,210.13,123.14]
[1758705157091,11.6214,210.15,210.13,123.14]
[1758705160893,11.6214,210.15,210.13,7.74]
[1758705161094,11.6214,210.15,210.13,123.14]
[1758705163094,11.6214,210.15,210.13,7.74]
[1758705163289,1.19004714,210.14,210.13,33.12]
[1758705166896,4.2814,210.15,210.13,33.12]
[1758705167092,4.2814,210.15,210.14,7.74]
[1758705167285,5.47137503,210.15,210.14,7.74]
[1758705169198,4.2818,210.13,210.11,4.00930426]
[1758705169504,4.2818,210.13,210.12,7.74]
[1758705169698,8.53001317,210.13,210.1,7.74]
[1758705170000,1.19001317,210.12,210.1,7.74]
[1758705170186,7.34,210.13,210.1,7.74]
[1758705170691,7.34,210.13,210.09,7.74]
[1758705170899,4.2823,210.11,210.09,7.74]
[1758705171192,66.591,210.18,210.09,7.74]
[1758705171495,4.282,210.12,210.09,7.74]
[1758705171796,4.282,210.12,210.08,4.00930426]
[1758705173094,4.282,210.12,210.09,7.74]
[1758705173294,4.282,210.12,210.08,4.00930426]
[1758705173489,4.2823,210.11,210.09,7.73]
[1758705173694,7.34,210.15,210.08,4.00930426]
[1758705173897,1.19008726,210.14,210.08,4.00930426]
[1758705174198,7.34,210.15,210.09,7.73]
[1758705174495,1.19008548,210.14,210.08,4.00930426]
[1758705174695,7.57,210.16,210.09,7.73]
[1758705174897,4.2818,210.13,210.08,4.00930426]
[1758705175087,4.2818,210.13,210.09,7.73]
[1758705175392,4.2818,210.13,210.08,4.00930426]
[1758705175995,4.282,210.12,210.08,4.00930426]
[1758705176200,4.282,210.12,210.09,7.73]
[1758705176596,4.282,210.12,210.08,4.00930426]
[1758705176796,4.282,210.12,210.09,7.73]
[1758705177002,4.282,210.12,210.08,4.00930426]
[1758705177203,4.282,210.12,210.09,7.73]
[1758705177498,4.282,210.12,210.08,4.00930426]
[1758705177698,4.282,210.12,210.09,7.73]
[1758705177904,4.282,210.12,210.08,4.00930426]
[1758705178104,4.282,210.12,210.09,7.73]
[1758705178307,4.282,210.12,210.09,7.33]
[1758705178499,7.54,210.19,210.09,11.33930426]
[1758705178700,1.19003257,210.18,210.11,7.33]
[1758705178903,1.19003257,210.17,210.11,7.33]
[1758705179103,1.19003257,210.16,210.1,4.00930426]
[1758705179305,7.54,210.18,210.11,7.33]
[1758705179502,1.18998432,210.17,210.11,7.33]
[1758705179699,1.18998432,210.16,210.1,4.00930426]
[1758705179898,4.2812,210.16,210.1,8.29160426]
[1758705180304,4.2812,210.16,210.11,7.33]
[1758705180495,4.2812,210.16,210.1,8.29160426]
[1758705180704,11.8212,210.16,210.12,7.33]
[1758705180902,11.8212,210.16,210.11,4.2821]
[1758705181102,4.2808,210.18,210.11,7.33]
[1758705181303,1.18994764,210.17,210.11,7.33]
[1758705181607,1.18994764,210.16,210.11,7.33]
[1758705181806,4.2808,210.18,210.12,4.2818]
[1758705182008,1.1899382,210.17,210.12,4.2818]
[1758705182209,11.8208,210.18,210.12,11.6118]
[1758705182409,8.72990117,210.17,210.13,7.33]
[1758705182602,7.54,210.17,210.12,4.2818]
[1758705183209,11.821,210.17,210.13,7.33]
[1758705183607,11.821,210.17,210.12,4.2818]
[1758705183800,11.8212,210.16,210.11,4.00930426]
[1758705184006,7.54,210.16,210.11,4.00930426]
[1758705184411,7.54,210.16,210.12,7.33]
[1758705184616,7.54,210.16,210.11,4.00930426]
[1758705184914,4.2814,210.15,210.12,7.33]
[1758705185417,11.8214,210.15,210.11,4.00930426]
[1758705185616,11.8214,210.15,210.12,7.33]
[1758705185911,11.8214,210.15,210.11,4.00930426]
[1758705186111,11.8214,210.15,210.12,7.33]
[1758705186514,11.8214,210.15,210.11,4.00930426]
[1758705186714,11.8214,210.15,210.12,7.33]
[1758705186910,4.2814,210.15,210.12,7.33]
[1758705187119,11.8214,210.15,210.12,7.33]
[1758705187919,4.281,210.17,210.12,7.33]
[1758705188119,4.281,210.17,210.11,4.00930426]
[1758705188320,7.54,210.21,210.12,7.33]
[1758705188519,7.54,210.19,210.12,7.33]
[1758705188715,1.1899017,210.18,210.12,7.33]
[1758705188916,1.1899017,210.17,210.12,7.33]
[1758705189121,7.54,210.18,210.12,7.33]
[1758705189321,1.18990206,210.17,210.11,4.00930426]
[1758705189524,11.8212,210.16,210.11,8.29130426]
[1758705189719,11.8212,210.16,210.12,7.33]
[1758705190323,7.54,210.2,210.14,7.33]
[1758705190626,7.54,210.18,210.13,4.2817]
[1758705190821,8.72990206,210.17,210.14,7.33]
[1758705191128,7.54,210.23,210.14,7.33]
[1758705191422,7.54,210.21,210.14,7.33]
[1758705191622,1.18986343,210.2,210.12,4.00930426]
[1758705191823,8.72986343,210.19,210.13,7.33]
[1758705192028,1.18986343,210.18,210.13,7.33]
[1758705192322,1.18986343,210.17,210.12,4.00930426]
[1758705192514,7.54,210.22,210.13,7.33]
[1758705192716,7.54,210.2,210.13,7.33]
[1758705192916,7.54,210.18,210.13,7.33]
[1758705193113,8.72986361,210.17,210.12,4.00930426]
[1758705193321,4.2812,210.16,210.13,7.33]
[1758705193815,4.2812,210.16,210.12,4.00930426]
[1758705194014,11.8212,210.16,210.13,7.33]
[1758705194521,11.8212,210.16,210.12,4.00930426]
[1758705194922,11.8212,210.16,210.13,7.33]
[1758705195121,11.8212,210.16,210.12,4.00930426]
[1758705195627,11.8214,210.15,210.13,7.33]
[1758705195816,7.54,210.18,210.11,4.00930426]
[1758705196015,7.54,210.16,210.11,4.00930426]
[1758705196224,7.54,210.18,210.11,4.00930426]
[1758705196426,1.18993963,210.17,210.11,4.00930426]
[1758705196724,7.54,210.15,210.12,7.33]
[1758705197825,4.2817,210.14,210.12,7.33]